bitfinex/quotes_SOLUSD_20220226
["timestamp","ask_amount","ask_price","bid_price","bid_amount"]
[1645848939897,50.108729,92.755,92.653,0.25]
[1645848940097,15.51,92.75,92.653,0.25]
[1645848940497,15.51,92.75,92.652,17.7878699]
[1645848942198,1.94004827,92.749,92.652,17.7878699]
[1645848944301,1.94004827,92.749,92.653,0.25]
[1645848944500,1.94004827,92.749,92.652,17.7878699]
[1645848946901,1.94004827,92.749,92.653,0.25]
[1645848947300,1.94004827,92.749,92.652,17.7878699]
[1645848949908,1.94004827,92.749,92.66,16.1833]
[1645848950105,1.94004827,92.749,92.661,0.25]
[1645848953615,1.94004827,92.749,92.66,16.1833]
[1645848954416,1.94004827,92.749,92.661,0.25]
[1645848955116,1.94004827,92.749,92.66,16.1833]
[1645848957920,50.108729,92.755,92.661,12.19533732]
[1645848958129,4.314,92.798,92.681,5.0]
[1645848958328,45.9232,92.806,92.69,15.51]
[1645848958529,1.86376532,92.819,92.691,7.45679309]
[1645848958728,15.9435,92.849,92.701,5.0]
[1645848958729,45.9232,92.838,92.701,5.0]
[1645848958932,1.98442977,92.837,92.71,15.51]
[1645848959228,1.60229678,92.836,92.732,15.84093049]
[1645848959432,4.311,92.835,92.732,15.84093049]
[1645848959630,15.51,92.83,92.732,15.84093049]
[1645848959930,6.20739007,92.829,92.732,15.84093049]
[1645848960132,107.6,92.828,92.732,15.84093049]
[1645848960329,113.35314408,92.827,92.732,15.84093049]
[1645848960530,1.72780912,92.826,92.732,15.84093049]
[1645848960730,1.98026548,92.825,92.732,15.84093049]
[1645848960930,42.99305871,92.823,92.732,15.84093049]
[1645848961128,1.70446976,92.822,92.732,15.84093049]
[1645848961534,3.9495359,92.822,92.732,15.84093049]
[1645848961728,2.24506614,92.821,92.732,15.84093049]
[1645848965334,15.51,92.82,92.732,15.84093049]
[1645848965534,1.88975209,92.819,92.732,15.84093049]
[1645848965733,4.13481823,92.819,92.732,15.84093049]
[1645848965934,2.24506614,92.818,92.732,15.84093049]
[1645848967533,2.24506614,92.818,92.72,16.1732]
[1645848967933,1.6804718,92.816,92.72,16.1732]
[1645848968233,2.24506614,92.815,92.72,16.1732]
[1645848968436,22.8446,92.814,92.72,16.1732]
[1645848968634,1.58790463,92.813,92.721,16.59794028]
[1645848970338,1.58790463,92.813,92.72,16.1732]
[1645848970838,1.59539633,92.809,92.72,16.1732]
[1645848971035,1.57365513,92.807,92.721,2.86292427]
[1645848971239,57.30639466,92.806,92.721,2.86292427]
[1645848971437,1.55863831,92.805,92.721,2.86292427]
[1645848979055,57.30639466,92.806,92.721,2.86292427]
[1645848979253,57.30639466,92.806,92.731,4.89505101]
[1645848979658,1.95650213,92.841,92.733,107.6]
[1645848979858,15.51,92.86,92.734,4.559]
[1645848980063,1.62220014,92.859,92.735,107.6]
[1645848980257,1.62220014,92.859,92.736,4.559]
[1645848980458,1.62220014,92.859,92.74,15.51]
[1645848980657,56.97891943,92.858,92.76,16.1655]
[1645848980862,1.96898491,92.857,92.761,15.52117353]
[1645848981860,1.96898491,92.857,92.762,2.86292427]
[1645848982663,1.96898491,92.857,92.77,16.1647]
[1645848986364,2.24506614,92.856,92.77,16.1647]
[1645848987763,24.48928294,92.855,92.77,16.1647]
[1645848987965,1.56499291,92.854,92.77,16.1647]
[1645848988965,24.49695701,92.853,92.77,16.1647]
[1645848989263,1.66628612,92.851,92.77,16.1647]
[1645848991363,15.51,92.84,92.746,4.309]
[1645848991564,107.6,92.839,92.746,4.309]
[1645848991765,1.7053462,92.838,92.711,47.1177]
[1645848991965,137.17210855,92.838,92.711,47.1177]
[1645848992167,21.81935333,92.837,92.711,47.1177]
[1645848992368,1.91438991,92.835,92.712,15.16167728]
[1645848992566,15.51,92.83,92.712,15.16167728]
[1645848992766,1.605806,92.829,92.712,15.16167728]
[1645848992967,1.68118229,92.828,92.712,15.16167728]
[1645848993169,1.61760903,92.827,92.712,15.16167728]
[1645848993369,3.86267517,92.827,92.712,15.16167728]
[1645848993567,3.86267517,92.827,92.73,16.1716]
[1645848993767,1.81404788,92.825,92.731,5.00454726]
[1645848994166,54.48353865,92.823,92.731,5.00454726]
[1645848994368,15.51,92.82,92.731,5.00454726]
[1645848994572,1.52299334,92.819,92.731,5.00454726]
[1645848994772,27.92782433,92.819,92.711,47.1177]
[1645848994973,1.65703892,92.817,92.711,47.1177]
[1645848995378,50.90800668,92.816,92.711,47.1177]
[1645848995680,1.57260248,92.814,92.712,14.81462447]
[1645848995881,55.4595766,92.809,92.712,14.81462447]
[1645848996075,1.5133563,92.808,92.712,14.81462447]
[1645848996578,55.4595766,92.809,92.712,14.81462447]
[1645848996579,25.78425055,92.807,92.712,14.81462447]
[1645848996776,1.43888607,92.806,92.712,14.81462447]
[1645848996983,25.59865092,92.806,92.712,14.81462447]
[1645848997177,1.91507296,92.805,92.712,14.81462447]
[1645848997377,1.90224088,92.803,92.712,14.81462447]
[1645848999999,2.24506614,92.802,92.712,14.81462447]
[1645849000298,1.90224088,92.803,92.712,14.81462447]
[1645849000504,1.90224088,92.803,92.72,16.1734]
[1645849012515,24.57471357,92.802,92.72,16.1734]
[1645849012716,1.570882,92.801,92.72,16.1734]
[1645849012917,1.570882,92.801,92.713,23.2057]
[1645849013322,26.81977971,92.8,92.713,23.2057]
[1645849013516,1.76968757,92.799,92.713,23.2057]
[1645849013717,28.58946728,92.799,92.712,14.81462447]
[1645849013916,1.94560448,92.797,92.712,14.81462447]
[1645849014416,4.19067062,92.797,92.712,14.81462447]
[1645849014617,58.62807798,92.795,92.712,14.81462447]
[1645849015016,1.52719408,92.793,92.712,14.81462447]
[1645849015216,24.57471357,92.794,92.712,14.81462447]
[1645849015217,1.48908285,92.791,92.712,14.81462447]
[1645849015819,1.81305615,92.789,92.712,14.81462447]
[1645849016218,1.52213722,92.787,92.712,14.81462447]
[1645849016620,24.57471357,92.786,92.712,14.81462447]
[1645849016818,1.81076314,92.785,92.712,14.81462447]
[1645849017018,1.7313886,92.79,92.712,14.81462447]
[1645849017419,24.57471357,92.789,92.712,14.81462447]
[1645849017620,1.82636641,92.788,92.712,14.81462447]
[1645849018120,24.57471357,92.787,92.712,14.81462447]
[1645849018521,1.83619064,92.786,92.712,14.81462447]
[1645849018923,1.83619064,92.786,92.7,16.1765]
[1645849019124,1.83619064,92.786,92.691,24.9981]
[1645849019125,107.6,92.784,92.691,24.9981]
[1645849019324,107.6,92.779,92.65,53.9408]
[1645849019524,1.79539745,92.778,92.651,24.9879]
[1645849019823,30.70304924,92.777,92.651,24.9879]
[1645849020021,1.75676864,92.775,92.652,19.10437993]
[1645849020425,42.26416408,92.774,92.652,19.10437993]
[1645849020625,15.51,92.76,92.66,16.1841]
[1645849020828,52.71341424,92.759,92.661,0.25]
[1645849021032,1.80586022,92.757,92.661,0.25]
[1645849026355,1.80586022,92.757,92.66,16.1841]
[1645849037068,48.9443,92.758,92.66,16.1841]
[1645849037266,48.9443,92.758,92.68,16.1811]
[1645849037467,48.9443,92.758,92.681,1.06184461]
[1645849039571,48.9443,92.758,92.682,0.25]
[1645849039969,48.9443,92.758,92.69,16.1785]
[1645849040270,48.9443,92.758,92.691,0.25]
[1645849040470,51.24083028,92.759,92.691,0.25]
[1645849040669,1.47105044,92.784,92.691,0.25]
[1645849040871,4.313,92.793,92.691,0.25]
[1645849040872,23.4097,92.783,92.691,0.25]
[1645849041069,4.313,92.825,92.701,110.31813699]
[1645849041269,1.88066278,92.834,92.704,2.29991095]
[1645849041568,1.75117481,92.823,92.705,0.25]
[1645849041768,47.13485553,92.822,92.708,107.6]
[1645849041970,1.7752545,92.821,92.72,15.51]
[1645849042170,1.7752545,92.821,92.722,1.06184461]
[1645849042368,24.51895275,92.82,92.722,1.06184461]
[1645849042570,1.83512649,92.819,92.73,16.1709]
[1645849042773,1.83512649,92.819,92.731,0.25]
[1645849043369,1.83512649,92.819,92.73,16.1709]
[1645849044671,1.83512649,92.819,92.74,16.1699]
[1645849044870,1.83512649,92.819,92.741,19.10437993]
[1645849045571,47.13485553,92.822,92.741,19.10437993]
[1645849046574,47.13485553,92.822,92.75,16.1679]
[1645849048974,1.59372357,92.821,92.742,23.8269]
[1645849049173,1.59372357,92.821,92.72,30.50302556]
[1645849049374,1.62210485,92.819,92.721,22.5627]
[1645849049779,1.9685954,92.817,92.721,22.5627]
[1645849050177,1.65807428,92.815,92.722,14.36249565]
[1645849050580,1.59270284,92.813,92.722,14.36249565]
[1645849050980,1.97777079,92.811,92.722,14.36249565]
[1645849051177,22.6968,92.81,92.722,14.36249565]
[1645849051377,1.90739574,92.809,92.722,14.36249565]
[1645849051578,49.78490855,92.808,92.722,14.36249565]
[1645849051778,1.69160119,92.807,92.722,14.36249565]
[1645849052178,1.76978231,92.805,92.722,14.36249565]
[1645849052581,24.5531995,92.804,92.722,14.36249565]
[1645849052780,1.89162305,92.803,92.722,14.36249565]
[1645849056185,24.57209467,92.802,92.722,14.36249565]
[1645849056387,1.67954979,92.801,92.722,14.36249565]
[1645849057186,1.73817196,92.807,92.722,14.36249565]
[1645849057389,24.57196853,92.806,92.722,14.36249565]
[1645849057587,1.97399251,92.805,92.722,14.36249565]
[1645849057987,8.81399251,92.805,92.722,14.36249565]
[1645849058287,1.98384625,92.803,92.722,14.36249565]
[1645849058687,24.57196853,92.802,92.722,14.36249565]
[1645849058886,1.92248928,92.801,92.722,14.36249565]
[1645849059806,1.6239098,92.807,92.722,14.36249565]
[1645849060407,24.57130238,92.806,92.722,14.36249565]
[1645849060707,1.84543833,92.805,92.722,14.36249565]
[1645849061109,24.57130238,92.804,92.722,14.36249565]
[1645849061409,1.53362678,92.803,92.722,14.36249565]
[1645849061607,3.7773326,92.803,92.69,31.6867]
[1645849061809,24.681,92.802,92.703,23.6881]
[1645849062008,1.89715953,92.801,92.703,23.6881]
[1645849062211,4.14086535,92.801,92.703,23.6881]
[1645849062410,24.57130238,92.8,92.703,23.6881]
[1645849062616,1.93492601,92.799,92.703,23.6881]
[1645849062814,4.17863183,92.799,92.703,23.6881]
[1645849063011,24.5433,92.798,92.703,23.6881]
[1645849063214,109.15529631,92.797,92.69,16.1767]
[1645849063413,109.15529631,92.797,92.671,12.99406152]
[1645849063414,1.63351587,92.796,92.671,12.99406152]
[1645849063613,111.913,92.795,92.661,24.3648]
[1645849063913,107.6,92.793,92.661,24.3648]
[1645849064112,172.22,92.779,92.662,18.8768559]
[1645849064315,64.62,92.769,92.662,18.8768559]
[1645849064513,64.62,92.759,92.662,18.8768559]
[1645849064712,64.62,92.757,92.662,18.8768559]
[1645849064912,1.85206245,92.756,92.661,24.3648]
[1645849065316,188.4084,92.75,92.639,13.49447802]
[1645849065519,1.98014423,92.749,92.64,22.7081]
[1645849065718,64.62,92.748,92.64,22.7081]
[1645849065916,1.96068957,92.747,92.64,38.43647635]
[1645849066115,64.62,92.745,92.64,22.7081]
[1645849066318,1.86834118,92.744,92.64,22.7081]
[1645849066614,64.62,92.739,92.64,38.8955]
[1645849066815,1.86488629,92.738,92.639,0.5004165]
[1645849067118,64.62,92.735,92.64,15.5539526]
[1645849067315,1.7187786,92.734,92.64,15.5539526]
[1645849067514,64.62,92.733,92.64,15.5539526]
[1645849067721,1.79684122,92.732,92.639,0.5004165]
[1645849068816,1.79684122,92.732,92.64,15.72320318]
[1645849069218,2.24370582,92.731,92.64,15.72320318]
[1645849069517,16.1918,92.73,92.639,0.5004165]
[1645849069720,1.86662379,92.728,92.639,0.5004165]
[1645849070118,2.24370582,92.727,92.639,0.5004165]
[1645849070319,2.24370582,92.727,92.64,17.96416986]
[1645849071217,2.24370582,92.727,92.639,0.5004165]
[1645849073720,16.1938,92.72,92.639,0.5004165]
[1645849073922,1.75262095,92.718,92.639,0.5004165]
[1645849074322,2.24370582,92.717,92.639,0.5004165]
[1645849074523,172.22,92.714,92.639,0.5004165]
[1645849074721,15.51,92.7,92.639,0.5004165]
[1645849074922,172.22,92.697,92.639,0.5004165]
[1645849075123,1.5102745,92.696,92.639,0.5004165]
[1645849075523,4.316,92.695,92.639,0.5004165]
[1645849075723,1.70150678,92.688,92.639,0.5004165]
[1645849076024,1.70150678,92.688,92.56,16.1992]
[1645849076226,172.22,92.686,92.505,113.0]
[1645849076422,1.93284819,92.685,92.506,45.8822]
[1645849076625,107.6,92.679,92.53,16.2046]
[1645849076821,172.22,92.669,92.53,16.2046]
[1645849077022,107.6,92.639,92.53,16.2046]
[1645849077222,172.22,92.629,92.53,16.2046]
[1645849077421,172.22,92.627,92.53,16.2046]
[1645849077624,1.92807687,92.626,92.505,113.0]
[1645849077823,68.94,92.625,92.469,113.0]
[1645849078025,15.51,92.61,92.495,28.31330685]
[1645849078221,1.53763987,92.609,92.531,3.29174491]
[1645849078421,51.81039585,92.608,92.531,3.29174491]
[1645849078623,1.63199832,92.607,92.531,0.42882064]
[1645849079227,1.63199832,92.607,92.531,3.29174491]
[1645849079624,1.63199832,92.607,92.531,0.42882064]
[1645849080226,51.81039585,92.608,92.531,3.29174491]
[1645849080427,51.81039585,92.608,92.532,4.321]
[1645849080827,1.47027476,92.607,92.533,2.86292427]
[1645849081025,1.47027476,92.607,92.531,0.42882064]
[1645849081626,72.37027476,92.607,92.522,2.86292427]
[1645849081828,1.60371951,92.606,92.51,2.86292427]
[1645849082027,1.90059806,92.604,92.51,2.86292427]
[1645849082426,1.97292643,92.599,92.51,2.86292427]
[1645849082627,1.87166132,92.598,92.511,19.6139994]
[1645849083028,4.11536714,92.598,92.511,19.6139994]
[1645849083229,2.24370582,92.597,92.511,19.6139994]
[1645849084229,2.24370582,92.597,92.484,4.321]
[1645849084430,2.24370582,92.597,92.481,2.86292427]
[1645849084431,66.2051149,92.589,92.481,2.86292427]
[1645849084628,15.51,92.58,92.481,2.86292427]
[1645849084830,64.62,92.578,92.488,2.86292427]
[1645849085028,64.62,92.578,92.471,4.322]
[1645849085029,64.62,92.576,92.435,4.322]
[1645849085229,64.62,92.574,92.436,19.62882624]
[1645849085432,64.62,92.559,92.437,4.323]
[1645849085651,15.51,92.55,92.437,4.323]
[1645849085833,1.50617162,92.556,92.437,4.323]
[1645849086029,47.02172685,92.539,92.437,4.323]
[1645849086233,47.02172685,92.539,92.438,0.25]
[1645849086432,47.02172685,92.539,92.439,4.324]
[1645849086632,47.02172685,92.539,92.461,1.0378148]
[1645849087734,64.62,92.538,92.461,1.0378148]
[1645849088635,64.62,92.538,92.461,5.3618148]
[1645849089438,47.02172685,92.539,92.461,5.3618148]
[1645849089636,47.02172685,92.539,92.47,16.217]
[1645849089836,47.02172685,92.539,92.471,0.25]
[1645849090237,66.56973555,92.555,92.471,0.25]
[1645849091238,118.2049259,92.554,92.471,0.25]
[1645849091440,118.2049259,92.554,92.47,16.217]
[1645849091837,1.94971531,92.553,92.47,16.217]
[1645849093659,24.4366,92.556,92.471,107.6]
[1645849093856,24.3991,92.572,92.559,6.01923587]
[1645849094758,50.26466271,92.576,92.559,6.01923587]
[1645849095357,64.62,92.575,92.559,6.01923587]
[1645849095957,1.92368669,92.574,92.559,6.01923587]
[1645849104368,1.49402246,92.571,92.528,0.42882064]
[1645849104665,64.62,92.559,92.528,0.42882064]
[1645849104867,1.80871229,92.558,92.528,0.42882064]
[1645849105067,4.05179201,92.558,92.528,0.42882064]
[1645849105871,1.69991573,92.555,92.528,0.42882064]
[1645849106269,105.0,92.554,92.47,16.215]
[1645849106474,64.62,92.549,92.47,16.215]
[1645849106669,64.62,92.549,92.451,52.5624]
[1645849106670,1.88192568,92.548,92.451,52.5624]
[1645849106870,1.6887818,92.546,92.451,52.5624]
[1645849107271,1.6887818,92.546,92.452,25.38052571]
[1645849107470,1.6887818,92.546,92.453,4.324]
[1645849108071,2.24321112,92.545,92.453,4.324]
[1645849110076,2.24321112,92.545,92.452,25.38052571]
[1645849110477,2.24321112,92.545,92.451,48.2394]
[1645849110478,107.6,92.544,92.45,16.2207]
[1645849110677,107.6,92.527,92.43,16.2241]
[1645849110977,64.62,92.51,92.412,4.324]
[1645849111176,66.36643,92.499,92.407,47.9827]
[1645849111377,1.58184185,92.498,92.407,47.9827]
[1645849111577,1.78574012,92.496,92.408,22.75740607]
[1645849111978,64.62,92.494,92.408,22.75740607]
[1645849112179,1.86930236,92.493,92.408,22.75740607]
[1645849112581,1.86930236,92.493,92.41,16.2278]
[1645849114388,1.86930236,92.493,92.407,47.9827]
[1645849114389,66.86302685,92.492,92.407,47.9827]
[1645849114581,1.56467063,92.478,92.39,14.27181056]
[1645849114782,1.56467063,92.478,92.374,4.325]
[1645849114783,1.56467063,92.478,92.372,4.327]
[1645849115383,64.62,92.469,92.372,4.327]
[1645849115585,64.62,92.453,92.372,4.327]
[1645849115784,4.328,92.468,92.345,23.5277]
[1645849115785,64.62,92.439,92.345,23.5277]
[1645849115986,1.90404489,92.438,92.345,23.5277]
[1645849116186,1.90404489,92.438,92.306,24.7034]
[1645849116387,59.29162585,92.435,92.308,2.40460986]
[1645849116586,1.49349628,92.433,92.309,2.82375965]
[1645849116785,64.62,92.417,92.309,2.82375965]
[1645849116986,71.96,92.417,92.309,2.82375965]
[1645849117384,73.6474986,92.417,92.309,2.82375965]
[1645849117585,73.6474986,92.417,92.32,16.2433]
[1645849118285,73.6474986,92.417,92.321,0.25]
[1645849118486,1.93921068,92.416,92.321,0.25]
[1645849120186,1.93921068,92.416,92.33,16.2415]
[1645849121988,64.62,92.417,92.33,123.8415]
[1645849122389,1.9354481,92.432,92.33,123.8415]
[1645849122590,64.62,92.436,92.331,2.54558421]
[1645849122787,64.62,92.436,92.36,16.2351]
[1645849122992,1.47470397,92.457,92.361,0.25]
[1645849123187,1.89455981,92.468,92.361,0.25]
[1645849123388,64.62,92.466,92.361,0.25]
[1645849123689,1.99613605,92.465,92.345,2.647669]
[1645849123888,1.99613605,92.465,92.347,107.6]
[1645849124087,1.99613605,92.465,92.348,3.19501208]
[1645849124486,64.62,92.466,92.37,16.2345]
[1645849125689,1.8862545,92.465,92.37,16.2345]
[1645849125890,4.328,92.464,92.37,16.2345]
[1645849126090,64.62,92.459,92.35,16.2381]
[1645849126390,1.71176499,92.458,92.35,16.2381]
[1645849126589,1.44947755,92.456,92.35,16.2381]
[1645849127195,64.62,92.457,92.35,123.8381]
[1645849127390,64.62,92.457,92.37,16.2323]
[1645849127592,64.62,92.459,92.37,16.2323]
[1645849128893,1.75713873,92.458,92.37,16.2323]
[1645849136620,64.62,92.465,92.37,16.2323]
[1645849137623,1.87759546,92.464,92.37,16.2323]
[1645849138019,15.51,92.46,92.37,16.2323]
[1645849138218,64.62,92.459,92.37,16.2323]
[1645849141221,64.62,92.459,92.371,107.6]
[1645849141422,15.51,92.46,92.381,107.6]
[1645849141625,25.97498865,92.483,92.381,113.73]
[1645849141826,22.9701,92.484,92.382,3.24341141]
[1645849142124,22.9701,92.484,92.385,2.99518947]
[1645849142324,22.9701,92.484,92.386,0.25]
[1645849142724,43.19269376,92.483,92.391,107.6]
[1645849142924,43.19269376,92.483,92.392,2.65510214]
[1645849144327,1.54588781,92.504,92.392,2.65510214]
[1645849144532,4.325,92.527,92.401,107.6]
[1645849144729,1.84858544,92.554,92.421,4.79]
[1645849144926,1.8748213,92.572,92.431,112.39]
[1645849145129,47.6211,92.573,92.451,4.79]
[1645849145326,43.91533399,92.571,92.461,107.6]
[1645849145528,43.91533399,92.571,92.462,3.1226974]
[1645849145730,43.91533399,92.571,92.463,110.41136746]
[1645849145927,43.91533399,92.571,92.464,3.05480249]
[1645849146329,43.91533399,92.571,92.466,2.9845938]
[1645849146529,43.91533399,92.571,92.471,107.6]
[1645849146730,43.91533399,92.571,92.472,0.25]
[1645849148529,43.91533399,92.571,92.49,16.2134]
[1645849149538,43.91533399,92.571,92.491,107.6]
[1645849149739,2.31110969,92.605,92.51,16.2101]
[1645849149944,4.23193842,92.605,92.51,16.2101]
[1645849150145,4.23193842,92.605,92.51,23.1101]
[1645849150746,50.39164256,92.604,92.51,23.1101]
[1645849150948,1.73315355,92.603,92.51,23.1101]
[1645849151150,1.73315355,92.603,92.51,16.2101]
[1645849151550,28.8638747,92.602,92.51,16.2101]
[1645849151750,89.60661631,92.601,92.51,16.2101]
[1645849151953,1.53570884,92.6,92.51,16.2101]
[1645849152155,64.62,92.599,92.51,16.2101]
[1645849152357,1.90404911,92.598,92.492,24.0757]
[1645849152553,4.322,92.597,92.492,24.0757]
[1645849152756,66.27339305,92.597,92.492,24.0757]
[1645849152957,3.77245174,92.596,92.492,24.0757]
[1645849153474,66.86551461,92.595,92.492,24.0757]
[1645849153673,6.21528311,92.594,92.493,107.6]
[1645849153873,1.89328311,92.594,92.493,107.6]
[1645849154073,2.24551461,92.593,92.492,24.0757]
[1645849154773,4.2244665,92.593,92.492,24.0757]
[1645849154973,4.2244665,92.593,92.493,107.6]
[1645849155577,4.2244665,92.593,92.501,107.6]
[1645849160279,1.97895189,92.593,92.501,107.6]
[1645849160679,1.4778314,92.599,92.501,107.6]
[1645849160880,1.4778314,92.599,92.511,107.6]
[1645849161081,48.57415291,92.604,92.511,107.6]
[1645849161983,1.70788465,92.6,92.52,16.2082]
[1645849166486,1.70788465,92.6,92.521,107.6]
[1645849166689,66.32788465,92.6,92.52,16.2082]
[1645849166887,1.71107856,92.599,92.5,16.2118]
[1645849167089,64.62,92.589,92.493,4.321]
[1645849167290,64.62,92.587,92.475,49.4769]
[1645849167492,64.62,92.585,92.475,49.4769]
[1645849167691,64.62,92.569,92.475,49.4769]
[1645849167892,64.62,92.559,92.475,49.4769]
[1645849168095,1.70193218,92.558,92.475,49.4769]
[1645849168792,64.62,92.556,92.475,49.4769]
[1645849168994,1.45835692,92.555,92.475,49.4769]
[1645849170398,1.45835692,92.555,92.48,16.2152]
[1645849173105,49.29941339,92.566,92.481,114.78592427]
[1645849173301,49.29941339,92.566,92.5,16.2116]
[1645849174509,1.76194911,92.565,92.5,16.2116]
[1645849179006,49.29941339,92.566,92.5,16.2116]
[1645849181925,1.47993183,92.565,92.5,16.2116]
[1645849184726,49.29941339,92.566,92.5,16.2116]
[1645849185128,49.29941339,92.566,92.501,107.6]
[1645849185328,49.29941339,92.566,92.502,0.25]
[1645849185528,49.29941339,92.566,92.521,107.6]
[1645849185729,24.9982,92.579,92.521,107.6]
[1645849186631,44.80278166,92.578,92.503,2.86292427]
[1645849186830,44.80278166,92.578,92.504,0.25]
[1645849187031,44.80278166,92.578,92.53,16.2063]
[1645849188535,1.62635067,92.577,92.53,16.2063]
[1645849190738,1.62635067,92.577,92.51,54.0222]
[1645849193434,1.62635067,92.577,92.504,25.0184]
[1645849193435,1.62635067,92.577,92.504,24.7684]
[1645849193639,22.863,92.576,92.504,24.7684]
[1645849193836,1.49117,92.575,92.504,24.7684]
[1645849195238,66.11117,92.575,92.5,16.2098]
[1645849195439,1.47834625,92.574,92.486,2.86292427]
[1645849195639,1.47834625,92.574,92.484,23.0275]
[1645849195839,1.47834625,92.574,92.47,16.2143]
[1645849196038,66.86529454,92.573,92.47,16.2143]
[1645849196242,1.621358,92.572,92.47,16.2143]
[1645849196442,64.62,92.569,92.45,54.0487]
[1645849196639,1.47045131,92.568,92.45,54.0487]
[1645849198443,24.43048057,92.567,92.46,16.2186]
[1645849198643,66.28477729,92.566,92.46,16.2186]
[1645849198849,1.58593432,92.565,92.46,16.2186]
[1645849199045,122.30335612,92.564,92.46,16.2186]
[1645849199344,64.62,92.562,92.46,16.2186]
[1645849199543,1.4896597,92.561,92.46,16.2186]
[1645849199744,64.62,92.56,92.46,16.2186]
[1645849199943,1.43762474,92.559,92.46,16.2186]
[1645849200145,64.62,92.558,92.46,16.2186]
[1645849200546,64.62,92.556,92.46,16.2186]
[1645849200847,1.63478969,92.555,92.46,16.2186]
[1645849201046,64.62,92.554,92.46,16.2186]
[1645849201246,1.61812631,92.553,92.46,16.2186]
[1645849201448,26.04860688,92.553,92.46,16.2186]
[1645849201645,26.03848874,92.552,92.46,16.2186]
[1645849201846,1.39566258,92.551,92.46,16.2186]
[1645849202048,49.05914103,92.55,92.46,16.2186]
[1645849202249,1.6788435,92.549,92.461,107.6]
[1645849203454,1.6788435,92.549,92.462,22.7572]
[1645849203847,1.6788435,92.549,92.462,25.62012427]
[1645849204648,1.6788435,92.549,92.47,16.2163]
[1645849206051,1.6788435,92.549,92.471,107.6]
[1645849206451,1.6788435,92.549,92.47,16.2163]
[1645849206753,1.6788435,92.549,92.471,107.6]
[1645849207160,49.05914103,92.55,92.471,107.6]
[1645849210957,49.05914103,92.55,92.481,107.6]
[1645849211159,49.05914103,92.55,92.484,107.6]
[1645849211360,1.40738421,92.585,92.485,0.25]
[1645849211559,1.40738421,92.585,92.486,107.6]
[1645849211757,24.47382938,92.584,92.487,0.25]
[1645849212158,24.47382938,92.584,92.488,2.86292427]
[1645849212357,54.41799876,92.583,92.489,0.25]
[1645849212559,54.41799876,92.583,92.491,107.6]
[1645849213059,24.47382938,92.582,92.492,2.86292427]
[1645849213360,24.47382938,92.582,92.493,0.25]
[1645849213961,24.47382938,92.582,92.501,107.6]
[1645849214159,24.47382938,92.582,92.502,3.00827739]
[1645849214359,33.72145838,92.619,92.503,107.6]
[1645849214562,25.61268899,92.618,92.505,107.6]
[1645849214858,1.76975891,92.617,92.506,3.28013722]
[1645849215059,55.4229062,92.616,92.521,107.6]
[1645849215259,1.40499966,92.615,92.522,0.25]
[1645849215461,25.87519502,92.615,92.54,16.2036]
[1645849215660,1.60170988,92.614,92.54,130.0436]
[1645849215859,24.47019536,92.614,92.54,130.0436]
[1645849216060,24.47019536,92.614,92.541,3.11292427]
[1645849216260,24.47019536,92.614,92.543,2.73061002]
[1645849216460,24.47019536,92.615,92.544,0.25]
[1645849216659,55.4229062,92.616,92.544,3.11292427]
[1645849216861,32.08525716,92.643,92.544,3.11292427]
[1645849217063,24.45504425,92.636,92.545,2.86292427]
[1645849217262,24.45504425,92.636,92.552,2.57956992]
[1645849217463,24.45504425,92.636,92.553,0.25]
[1645849217662,24.45504425,92.636,92.553,3.11292427]
[1645849217862,54.61064812,92.635,92.553,3.11292427]
[1645849218467,24.45504425,92.634,92.572,2.83555256]
[1645849218664,24.45504425,92.634,92.573,107.85]
[1645849218862,1.61983908,92.686,92.573,110.71292427]
[1645849219161,24.42781147,92.685,92.576,2.30633122]
[1645849219362,55.44527482,92.684,92.577,0.25]
[1645849219562,1.36516762,92.683,92.577,3.11292427]
[1645849219765,1.36516762,92.683,92.581,107.6]
[1645849219963,24.42781147,92.682,92.582,0.25]
[1645849220164,1.61162285,92.681,92.582,0.25]
[1645849220365,26.03943432,92.681,92.582,0.25]